lending/lending_fUSD_20241214
["ID","MTS","AMOUNT","RATE_DAILY","PERIOD"]
[345354077,1734178238873,-615.24,0.00021249,3]
[345354078,1734178238883,-546.14,0.00021249,3]
[345354079,1734178238891,-500.0,0.00021249,3]
[345354080,1734178238901,-561.59831269,0.00021249,3]
[345354081,1734178238910,-500.0,0.00021249,3]
[345354082,1734178238920,-500.0,0.00021249,3]
[345354083,1734178238929,-500.0,0.00021249,3]
[345354084,1734178238938,-500.0,0.00021249,3]
[345354085,1734178238948,-500.0,0.00021249,3]
[345354086,1734178238958,-610.56,0.00021249,3]
[345354087,1734178238968,-500.0,0.00021249,3]
[345354088,1734178238977,-500.0,0.00021249,3]
[345354089,1734178238986,-500.0,0.00021249,3]
[345354090,1734178238995,-608.69,0.00021249,3]
[345354091,1734178239005,-500.0,0.00021249,3]
[345354092,1734178239014,-500.0,0.00021249,3]
[345354093,1734178239023,-500.0,0.00021249,3]
[345354094,1734178239032,-391.78192873,0.00021249,3]
[345354095,1734178239041,-500.0,0.00021249,3]
[345354096,1734178239050,-500.0,0.00021249,3]
[345354097,1734178239060,-569.1,0.00021249,3]
[345354098,1734178239069,-500.0,0.00021249,3]
[345354099,1734178239079,-251.62315036,0.00021249,3]
[345354100,1734178239088,-500.0,0.00021249,3]
[345354101,1734178239097,-1000.0,0.00021249,3]
[345354102,1734178239106,-1000.0,0.00021249,3]
[345354103,1734178239116,-1000.0,0.00021249,3]
[345354104,1734178239127,-983.65,0.00021249,3]
[345354105,1734178239136,-500.0,0.00021249,3]
[345354106,1734178239145,-500.0,0.00021249,3]
[345354107,1734178239154,-500.0,0.00021249,3]
[345354108,1734178239163,-500.0,0.00021249,3]
[345354109,1734178239172,-500.0,0.00021249,3]
[345354110,1734178239182,-500.0,0.00021249,3]
[345354111,1734178239191,-426.79369814,0.00021249,3]
[345354112,1734178239199,-210225.47577345,0.0002125,4]
[345354113,1734178239208,-4633.6645752,0.0002125,2]
[345354114,1734178239217,-6283.1812228,0.0002125,2]
[345354115,1734178239227,-725.0,0.0002125,2]
[345354117,1734178239237,-213614.0,0.0002125,2]
[345354118,1734178239246,-17491892.03650704,0.0002125,2]
[345354119,1734178239257,-150.019,0.0002125,2]
[345354121,1734178239268,-47628008.07172146,0.0002125,2]
[345354122,1734178239279,-16119.28113636,0.0002125,2]
[345354123,1734178239288,-500.0,0.0002125,2]
[345354124,1734178239298,-500.0,0.0002125,2]
[345354125,1734178239309,-500.0,0.0002125,2]
[345354126,1734178239319,-500.0,0.0002125,2]
[345354127,1734178239328,-500.0,0.0002125,2]
[345354128,1734178239338,-200.0,0.0002125,2]
[345354130,1734178239347,-5630728.71587958,0.0002125,2]
[345354132,1734178239361,-745.402,0.0002125,2]
[345354133,1734178239380,-1068.4696698,0.0002125,2]
[345354134,1734178239601,-381.0719233,0.0002125,2]
[345354142,1734178242369,-13529.89054489,0.0002125,2]
[345354150,1734178242433,-15.60606588,0.0002125,2]
[345354153,1734178242528,-7863.99999999,0.0002125,2]
[345354154,1734178242538,-3090.66701602,0.0002125,2]
[345354155,1734178242686,-29014.20568413,0.0002125,2]
[345354163,1734178245657,-2500.0,0.0002115,2]
[345354164,1734178245668,-155.9,0.000212,2]
[345354165,1734178245678,-500.0,0.00021249,3]
[345354166,1734178245688,-500.0,0.00021249,3]
[345354167,1734178245698,-500.0,0.00021249,3]
[345354168,1734178245708,-712.0,0.0002125,2]
[345354169,1734178245717,-63515.75551833,0.0002125,2]
[345354170,1734178245728,-3745.9769965,0.0002125,2]
[345354171,1734178292291,577.11323821,0.00017414,2]
[345354172,1734178293513,402.44969925,0.00017414,2]
[345354173,1734178297723,600.0,0.00017414,2]
[345354174,1734178459137,418.17115511,0.0002,120]
[345354175,1734178611032,1056.0,0.00015965,2]
[345354176,1734178625362,152.12,0.00013699,2]
[345354177,1734178632205,1056.0,0.00015167,2]
[345354178,1734178653808,781.77884907,0.00014409,2]
[345354179,1734178888388,63.03884489,0.0002,120]
[345354180,1734178888415,436.96115511,0.0002,120]
[345354181,1734179225108,-165.52,0.00016212,2]
[345354182,1734179225129,-799.27105764,0.00016806,2]
[345354183,1734179225193,-256.72894236,0.00016806,2]
[345354184,1734179225222,-582.52493023,0.00017414,2]
[345354185,1734179225248,-853.4076578,0.0001769,2]
[345354186,1734179246130,-398.16335816,0.00017605,2]
[345354187,1734179279315,269457.4517442,0.000119,2]
[345354188,1734179279344,46328245.47311892,0.000119,2]
[345354189,1734179279374,84453.01,0.000119,2]
[345354190,1734179279397,1330873.0,0.000119,2]
[345354191,1734179279424,11507315.75177467,0.000119,2]
[345354192,1734179305038,180.79,0.00010137,2]
[345354198,1734179365100,-180.79,0.00016813,2]
[345354199,1734179365121,-422.04664184,0.00017605,2]
[345354200,1734179365141,-202.5923422,0.0001769,2]
[345354201,1734179365162,-1056.0,0.00018621,2]
[345354202,1734179365184,-243.6122477,0.00019077,2]
[345354203,1734179380320,450.0,0.00013,2]
[345354204,1734179381558,500.0,0.00015,2]
[345354205,1734179382497,550.0,0.00017,2]
[345354206,1734179383577,600.0,0.00019,2]
[345354208,1734179411787,165.52,0.00015712,2]
[345354217,1734179431885,-614.72573488,0.00019543,2]
[345354236,1734179437591,-439.82,0.00019523,2]
[345354237,1734179437601,-471.46426512,0.00019543,2]
[345354238,1734179437611,-200.0,0.00019568,2]
[345354239,1734179437621,-163.43,0.00019591,2]
[345354240,1734179437631,-1056.0,0.00019601,2]
[345354241,1734179437640,-820.21,0.00019869,2]
[345354242,1734179437650,-500.0,0.00019966,2]
[345354243,1734179437659,-5000.0,0.0002,21]
[345354244,1734179437668,-1075.87881382,0.0002,2]
[345354245,1734179437677,-11924.38641,0.0002,2]
[345354246,1734179437687,-234.963,0.0002019,2]
[345354247,1734179437696,-300.0,0.0002019,2]
[345354248,1734179437706,-1000.0,0.00020191,2]
[345354249,1734179437715,-194.05,0.00020191,2]
[345354250,1734179437731,-250.0,0.00020191,2]
[345354251,1734179437740,-558.94,0.00020191,2]
[345354252,1734179437750,-250.0,0.00020191,2]
[345354253,1734179437759,-513.96,0.00020191,2]
[345354254,1734179437768,-336.65,0.00020191,120]
[345354255,1734179437777,-1575.53,0.00020191,2]
[345354256,1734179437786,-273.66,0.00020265,2]
[345354257,1734179437796,-966.58,0.0002027,2]
[345354258,1734179437805,-273.66,0.0002027,2]
[345354259,1734179437813,-273.66,0.00020276,2]
[345354260,1734179437823,-273.66,0.00020281,2]
[345354261,1734179437832,-273.66,0.00020286,2]
[345354262,1734179437842,-273.66,0.00020292,2]
[345354263,1734179437851,-273.66,0.00020297,2]
[345354264,1734179437860,-273.66,0.00020302,2]
[345354265,1734179437870,-273.66,0.00020308,2]
[345354266,1734179437879,-273.66,0.00020313,2]
[345354270,1734179438051,-273.66,0.00020318,2]
[345354272,1734179438062,-273.66,0.00020324,2]
[345354275,1734179438072,-273.66,0.00020329,2]
[345354277,1734179438081,-273.66,0.00020334,2]
[345354279,1734179438091,-273.66,0.0002034,2]
[345354280,1734179438101,-273.66,0.00020345,2]
[345354283,1734179438113,-273.66,0.0002035,2]
[345354285,1734179438124,-273.66,0.00020356,2]
[345354286,1734179438134,-273.66,0.00020361,2]
[345354289,1734179438143,-273.66,0.00020367,2]
[345354291,1734179438152,-1381.0,0.00020413,2]
[345354293,1734179438163,-5605.446198,0.000205,4]
[345354294,1734179438172,-996.32,0.00020579,2]
[345354297,1734179438181,-1056.0,0.00020633,2]
[345354298,1734179438192,-13723.0,0.00020696,2]
[345354301,1734179438202,-1771.0,0.000207,2]
[345354303,1734179438212,-1015.47305802,0.00020825,2]
[345354304,1734179438221,-1051.98288771,0.00020825,2]
[345354306,1734179438237,-1149.18259345,0.00020825,2]
[345354308,1734179438246,-200.0,0.00020913,2]
[345354310,1734179438256,-200.0,0.00020914,2]
[345354312,1734179438265,-200.0,0.00020936,2]
[345354314,1734179438276,-200.0,0.00020939,2]
[345354316,1734179438285,-200.0,0.00020941,2]
[345354318,1734179438295,-1557.156,0.00021,2]
[345354320,1734179438304,-16242.0,0.00021,2]
[345354323,1734179438314,-4131.0,0.00021,2]
[345354324,1734179438323,-10283.97683746,0.00021,2]
[345354327,1734179438333,-641.24359272,0.00021,2]
[345354329,1734179438343,-500.0,0.00021,2]
[345354331,1734179438353,-500.0,0.00021,2]
[345354332,1734179438362,-500.0,0.00021,2]
[345354335,1734179438372,-500.0,0.00021,2]
[345354337,1734179438381,-500.0,0.00021,2]
[345354339,1734179438392,-500.0,0.00021,2]
[345354341,1734179438402,-500.0,0.00021,2]
[345354343,1734179438411,-500.0,0.00021,2]
[345354345,1734179438420,-500.0,0.00021,2]
[345354346,1734179438430,-700.0,0.00021,2]
[345354349,1734179438446,-700.0,0.00021,2]
[345354351,1734179438456,-700.0,0.00021,2]
[345354353,1734179438466,-700.0,0.00021,2]
[345354355,1734179438482,-700.0,0.00021,2]
[345354357,1734179438492,-700.0,0.00021,2]
[345354358,1734179438501,-700.0,0.00021,2]
[345354360,1734179438511,-700.0,0.00021,2]
[345354362,1734179438520,-700.0,0.00021,2]
[345354364,1734179438529,-700.0,0.00021,2]
[345354366,1734179438538,-700.0,0.00021,2]
[345354368,1734179438547,-700.0,0.00021,2]
[345354370,1734179438556,-700.0,0.00021,2]
[345354372,1734179438566,-700.0,0.00021,2]
[345354374,1734179438575,-500.0,0.00021,2]
[345354376,1734179438584,-700.0,0.00021,2]
[345354378,1734179438593,-700.0,0.00021,2]
[345354380,1734179438602,-700.0,0.00021,2]
[345354382,1734179438611,-700.0,0.00021,2]
[345354384,1734179438619,-700.0,0.00021,2]
[345354386,1734179438629,-500.0,0.00021,2]
[345354388,1734179438638,-700.0,0.00021,2]
[345354390,1734179438647,-700.0,0.00021,2]
[345354392,1734179438657,-700.0,0.00021,2]
[345354394,1734179438666,-700.0,0.00021,2]
[345354396,1734179438677,-700.0,0.00021,2]
[345354398,1734179438686,-700.0,0.00021,2]
[345354400,1734179438696,-700.0,0.00021,2]
[345354402,1734179438706,-700.0,0.00021,2]
[345354404,1734179438715,-700.0,0.00021,2]
[345354406,1734179438727,-556.65196506,0.00021,2]
[345354408,1734179438736,-500.0,0.00021,2]
[345354411,1734179438746,-500.0,0.00021,2]
[345354413,1734179438755,-745.83529714,0.00021,2]
[345354415,1734179438764,-500.0,0.00021,2]
[345354417,1734179438774,-500.0,0.00021,2]
[345354419,1734179438783,-500.0,0.00021,2]
[345354421,1734179438792,-500.0,0.00021,2]
[345354423,1734179438801,-500.0,0.00021,2]
[345354425,1734179438810,-500.0,0.00021,2]
[345354427,1734179438819,-500.0,0.00021,2]
[345354429,1734179438828,-500.0,0.00021,2]
[345354431,1734179438837,-500.0,0.00021,2]
[345354432,1734179438845,-500.0,0.00021,2]
[345354434,1734179438854,-500.0,0.00021,2]
[345354436,1734179438863,-733.3836192,0.00021,5]
[345354438,1734179438873,-500.0,0.00021,2]
[345354441,1734179438882,-500.0,0.00021,2]
[345354443,1734179438892,-500.0,0.00021,2]
[345354445,1734179438901,-600.0,0.00021,2]
[345354446,1734179438910,-500.0,0.00021,2]
[345354448,1734179438919,-500.0,0.00021,2]
[345354450,1734179438928,-500.0,0.00021,2]
[345354452,1734179438937,-600.0,0.00021,2]
[345354454,1734179438946,-500.0,0.00021,2]
[345354456,1734179438954,-500.0,0.00021,2]
[345354458,1734179438963,-600.0,0.00021,2]
[345354460,1734179438974,-500.0,0.00021,2]
[345354462,1734179438988,-500.0,0.00021,2]
[345354464,1734179438997,-500.0,0.00021,2]
[345354466,1734179439006,-600.0,0.00021,2]
[345354468,1734179439015,-500.0,0.00021,2]
[345354470,1734179439024,-500.0,0.00021,2]
[345354472,1734179439033,-600.0,0.00021,2]
[345354474,1734179439042,-500.0,0.00021,2]
[345354476,1734179439051,-600.0,0.00021,2]
[345354478,1734179439060,-500.0,0.00021,2]
[345354480,1734179439069,-600.0,0.00021,2]
[345354482,1734179439078,-500.0,0.00021,2]
[345354484,1734179439086,-500.0,0.00021,2]
[345354486,1734179439095,-600.0,0.00021,2]
[345354488,1734179439105,-500.0,0.00021,2]
[345354490,1734179439116,-500.0,0.00021,2]
[345354492,1734179439126,-600.0,0.00021,2]
[345354494,1734179439135,-500.0,0.00021,2]
[345354496,1734179439144,-500.0,0.00021,2]
[345354498,1734179439153,-600.0,0.00021,2]
[345354499,1734179439163,-500.0,0.00021,2]
[345354501,1734179439172,-600.0,0.00021,2]
[345354503,1734179439181,-500.0,0.00021,2]
[345354505,1734179439191,-500.0,0.00021,2]
[345354507,1734179439200,-600.0,0.00021,2]
[345354509,1734179439209,-500.0,0.00021,2]
[345354511,1734179439218,-600.0,0.00021,2]
[345354513,1734179439233,-500.0,0.00021,2]
[345354515,1734179439243,-500.0,0.00021,2]
[345354517,1734179439253,-500.0,0.00021,2]
[345354519,1734179439262,-4130.46276305,0.00021,4]
[345354521,1734179439271,-2000.0,0.0002108,2]
[345354523,1734179439280,-500.0,0.0002108,2]
[345354525,1734179439290,-413.037,0.00021124,2]
[345354527,1734179439299,-220.0,0.00021128,2]
[345354529,1734179439308,-220.0,0.00021149,2]
[345354531,1734179439318,-150.0,0.000212,2]
[345354533,1734179439327,-12961.4917095,0.0002124,2]
[345354535,1734179439336,-1038.607068,0.00021248,2]
[345354537,1734179439345,-634.28,0.00021249,3]
[345354539,1734179439355,-500.0,0.00021249,3]
[345354541,1734179439365,-500.0,0.00021249,3]
[345354543,1734179439374,-500.0,0.00021249,3]
[345354545,1734179439383,-275.92958737,0.00021249,3]
[345354547,1734179439393,-500.0,0.00021249,3]
[345354550,1734179439403,-500.0,0.00021249,3]
[345354552,1734179439414,-500.0,0.00021249,3]
[345354553,1734179439423,-605.71,0.00021249,2]
[345354555,1734179439432,-500.0,0.00021249,3]
[345354557,1734179439441,-500.0,0.00021249,3]
[345354559,1734179439450,-500.0,0.00021249,3]
[345354561,1734179439459,-266.91,0.00021249,3]
[345354563,1734179439468,-500.0,0.00021249,3]
[345354565,1734179439483,-500.0,0.00021249,3]
[345354568,1734179439492,-196.94,0.00021249,3]
[345354569,1734179439501,-500.0,0.00021249,3]
[345354572,1734179439510,-591.78,0.00021249,3]
[345354574,1734179439519,-607.74,0.00021249,3]
[345354576,1734179439528,-521.62,0.00021249,3]
[345354579,1734179439537,-302.39953929,0.00021249,3]
[345354581,1734179439545,-500.0,0.00021249,3]
[345354582,1734179439554,-201.88,0.00021249,3]
[345354583,1734179439563,-500.0,0.00021249,3]
[345354584,1734179439572,-305.54,0.00021249,3]
[345354585,1734179439581,-984.09951,0.00021249,2]
[345354586,1734179439591,-500.0,0.00021249,3]
[345354587,1734179439600,-500.0,0.00021249,3]
[345354588,1734179439608,-503.31234313,0.00021249,3]
[345354589,1734179439617,-500.0,0.00021249,3]
[345354590,1734179439626,-500.0,0.00021249,3]
[345354591,1734179439635,-500.0,0.00021249,3]
[345354592,1734179439644,-500.0,0.00021249,3]
[345354594,1734179439653,-336.16,0.00021249,3]
[345354596,1734179439662,-500.0,0.00021249,3]
[345354598,1734179439672,-500.0,0.00021249,3]
[345354600,1734179439681,-500.0,0.00021249,3]
[345354602,1734179439690,-500.0,0.00021249,3]
[345354604,1734179439699,-500.0,0.00021249,3]
[345354606,1734179439708,-206.92,0.00021249,3]
[345354608,1734179439717,-153.3325555,0.00021249,3]
[345354610,1734179439731,-500.0,0.00021249,3]
[345354612,1734179439740,-4633.6645752,0.0002125,2]
[345354614,1734179439749,-636.0,0.0002125,2]
[345354616,1734179439758,-213614.0,0.0002125,2]
[345354618,1734179439767,-32111532.39574246,0.0002125,2]
[345354620,1734179439777,-617.07,0.0002125,3]
[345354622,1734179439786,-250.0,0.0002125,2]
[345354624,1734179439795,-228.0,0.0002125,2]
[345354626,1734179439804,-156.463,0.0002125,2]
[345354628,1734179439813,-167.0,0.0002125,2]
[345354630,1734179439822,-150.0,0.0002125,2]
[345354632,1734179439831,-153.691,0.0002125,2]
[345354634,1734179439840,-150.661,0.0002125,2]
[345354636,1734179439849,-500.0,0.0002125,2]
[345354638,1734179439858,-500.0,0.0002125,2]
[345354640,1734179439867,-500.0,0.0002125,2]
[345354642,1734179439875,-500.0,0.0002125,2]
[345354644,1734179439884,-500.0,0.0002125,2]
[345354646,1734179439894,-200.0,0.0002125,2]
[345354648,1734179439903,-2000.0,0.0002125,2]
[345354650,1734179439912,-200.0,0.0002125,2]
[345354652,1734179439921,-3765.0,0.0002125,2]
[345354654,1734179439930,-1256.467,0.0002125,2]
[345354656,1734179439939,-817.0,0.0002125,2]
[345354658,1734179439948,-535.0,0.0002125,2]
[345354660,1734179439957,-930.0,0.0002125,2]
[345354662,1734179439967,-3630.0,0.0002125,2]
[345354664,1734179439979,-200.0,0.0002125,2]
[345354665,1734179439991,-800.0,0.0002125,2]
[345354667,1734179440003,-800.0,0.0002125,2]
[345354669,1734179440013,-800.0,0.0002125,2]
[345354671,1734179440022,-800.0,0.0002125,2]
[345354673,1734179440031,-800.0,0.0002125,2]
[345354675,1734179440041,-804.47700766,0.0002125,2]
[345354677,1734179440050,-500.0,0.0002125,2]
[345354678,1734179440060,-500.0,0.0002125,2]
[345354680,1734179440069,-500.0,0.0002125,2]
[345354682,1734179440078,-500.0,0.0002125,2]
[345354684,1734179440087,-500.0,0.0002125,2]
[345354686,1734179440097,-603.40459611,0.0002125,2]
[345354688,1734179440106,-800.0,0.0002125,2]
[345354690,1734179440117,-800.0,0.0002125,2]
[345354692,1734179440127,-800.0,0.0002125,2]
[345354694,1734179440136,-800.0,0.0002125,2]
[345354696,1734179440145,-800.0,0.0002125,2]
[345354698,1734179440154,-800.0,0.0002125,2]
[345354700,1734179440163,-200.0,0.0002125,2]
[345354702,1734179440172,-243.99651298,0.0002125,2]
[345354703,1734179440182,-500.0,0.0002125,2]
[345354705,1734179440191,-150.0,0.0002125,2]
[345354707,1734179440201,-150.0,0.0002125,2]
[345354709,1734179440210,-150.0,0.0002125,2]
[345354711,1734179440219,-150.0,0.0002125,2]
[345354713,1734179440232,-500.0,0.0002125,2]
[345354715,1734179440241,-150.0,0.0002125,2]
[345354717,1734179440250,-2476.0,0.0002125,2]
[345354719,1734179440259,-1377.0,0.0002125,2]
[345354721,1734179440269,-28978161.72296935,0.0002125,2]
[345354723,1734179440278,-16119.28113636,0.0002125,2]
[345354725,1734179440287,-150.019,0.0002125,2]
[345354727,1734179440296,-150.0,0.0002125,2]
[345354729,1734179440305,-500.0,0.0002125,2]
[345354731,1734179440315,-150.0,0.0002125,2]
[345354733,1734179440324,-259.18344083,0.0002125,2]
[345354735,1734179440333,-500.0,0.0002125,2]
[345354737,1734179440342,-16000.0,0.0002125,4]
[345354739,1734179440351,-200.0,0.0002125,2]
[345354741,1734179440360,-669.41,0.0002125,2]
[345354743,1734179440369,-150.0,0.0002125,2]
[345354745,1734179440379,-1265.673,0.0002125,2]
[345354747,1734179440387,-567.0,0.0002125,2]
[345354749,1734179440396,-30152.98918045,0.0002125,2]
[345354750,1734179440406,-150.0,0.0002125,2]
[345354753,1734179440417,-500.0,0.0002125,2]
[345354755,1734179440426,-3000.0,0.0002125,10]
[345354756,1734179440435,-500.0,0.0002125,2]
[345354758,1734179440444,-20513.0,0.0002125,3]
[345354760,1734179440453,-8998.0,0.0002125,3]
[345354763,1734179440463,-30000.0,0.0002125,2]
[345354764,1734179440473,-1500.0,0.00021254,14]
[345354766,1734179440487,-1500.0,0.00021258,14]
[345354769,1734179440497,-1500.0,0.00021263,14]
[345354770,1734179440506,-1500.0,0.00021268,14]
[345354772,1734179440515,-1500.0,0.00021272,14]
[345354774,1734179440524,-500.0,0.00021273,2]
[345354776,1734179440533,-159.84709223,0.00021273,2]
[345354778,1734179440542,-159.85886267,0.00021273,2]
[345354780,1734179440551,-159.86153827,0.00021273,2]
[345354782,1734179440560,-159.86153731,0.00021273,2]
[345354784,1734179440571,-257.26736089,0.00021273,2]
[345354786,1734179440580,-159.86153827,0.00021273,2]
[345354788,1734179440589,-344.24741654,0.00021273,2]
[345354790,1734179440598,-1500.0,0.00021277,14]
[345354793,1734179440609,-500.0,0.0002128,7]
[345354795,1734179440618,-1500.0,0.00021282,14]
[345354797,1734179440627,-1500.0,0.00021286,14]
[345354799,1734179440637,-1500.0,0.00021291,14]
[345354801,1734179440646,-1500.0,0.00021296,14]
[345354802,1734179440655,-2000.0,0.00021299,2]
[345354804,1734179440664,-2000.0,0.00021299,2]
[345354806,1734179440673,-2000.0,0.00021299,2]
[345354808,1734179440682,-2000.0,0.00021299,2]
[345354810,1734179440691,-1500.0,0.000213,14]
[345354812,1734179440700,-1500.0,0.00021305,14]
[345354814,1734179440709,-1500.0,0.00021309,14]
[345354816,1734179440718,-1500.0,0.00021314,14]
[345354818,1734179440733,-1500.0,0.00021319,14]
[345354820,1734179440741,-1500.0,0.00021323,14]
[345354822,1734179440750,-150.0,0.00021328,2]
[345354824,1734179440759,-1500.0,0.00021328,14]
[345354826,1734179440768,-1500.0,0.00021333,14]
[345354828,1734179440778,-1500.0,0.00021337,14]
[345354830,1734179440787,-1500.0,0.00021342,14]
[345354832,1734179440797,-1500.0,0.00021347,14]
[345354834,1734179440806,-1500.0,0.00021351,14]
[345354836,1734179440815,-1500.0,0.00021356,14]
[345354838,1734179440824,-1500.0,0.00021361,14]
[345354840,1734179440834,-1500.0,0.00021365,14]
[345354842,1734179440843,-2645.90239934,0.0002137,14]
[345354844,1734179440852,-605.71,0.00021386,2]
[345354846,1734179440861,-1850.0,0.00021388,2]
[345354848,1734179440870,-150.0,0.00021428,2]
[345354850,1734179440880,-2000.0,0.00021462,2]
[345354852,1734179440889,-200.0,0.00021462,2]
[345354854,1734179440898,-200.0,0.00021462,2]
[345354856,1734179440907,-200.0,0.00021462,2]
[345354858,1734179440916,-200.0,0.00021462,2]
[345354860,1734179440925,-1783.29,0.000215,5]
[345354862,1734179440934,-605.71,0.00021523,2]
[345354864,1734179440943,-500.0,0.00021524,2]
[345354866,1734179440952,-150.0,0.00021524,2]
[345354868,1734179440962,-265.79742865,0.00021524,2]
[345354869,1734179440980,-200.3783749,0.00021524,2]
[345354871,1734179440990,-500.0,0.00021524,2]
[345354873,1734179440999,-2476.0,0.00021524,2]
[345354875,1734179441008,-1377.0,0.00021524,2]
[345354877,1734179441017,-152.17808278,0.00021524,2]
[345354879,1734179441026,-500.0,0.00021524,2]
[345354881,1734179441035,-168.33567471,0.00021524,2]
[345354883,1734179441044,-500.0,0.00021524,2]
[345354885,1734179441055,-500.0,0.0002155,8]
[345354899,1734179441177,-500.0,0.00021562,2]
[345354901,1734179441187,-23489.57677141,0.00021567,2]
[345354903,1734179441197,-1850.0,0.00021609,2]
[345354905,1734179441206,-605.71,0.0002166,2]
[345354907,1734179441214,-1056.0,0.00021665,2]
[345354909,1734179441223,-2000.0,0.00021677,2]
[345354911,1734179441238,-200.0,0.00021677,2]
[345354913,1734179441247,-200.0,0.00021677,2]
[345354915,1734179441256,-200.0,0.00021677,2]
[345354917,1734179441265,-200.0,0.00021677,2]
[345354919,1734179441275,-7223.87377012,0.000217,2]
[345354921,1734179441284,-401.0,0.000217,9]
[345354922,1734179441293,-1133.88,0.00021757,2]
[345354924,1734179441302,-605.71,0.00021797,2]
[345354926,1734179441312,-500.0,0.00021798,2]
[345354928,1734179441321,-150.0,0.00021798,2]
[345354930,1734179441330,-500.0,0.00021798,2]
[345354933,1734179441340,-2476.0,0.00021798,2]
[345354934,1734179441349,-1377.0,0.00021798,2]
[345354937,1734179441358,-656.13051612,0.00021798,2]
[345354938,1734179441367,-932.49221466,0.00021798,2]
[345354940,1734179441376,-168.89,0.00021816,2]
[345354942,1734179441385,-241.91075704,0.00021821,2]
[345354944,1734179441394,-1850.0,0.00021829,2]
[345354946,1734179441404,-500.0,0.00021873,2]
[345354948,1734179441413,-500.0,0.00021873,2]
[345354950,1734179441422,-171987.43054422,0.0002189,2]
[345354952,1734179441432,-493868.35110443,0.0002189,2]
[345354954,1734179441441,-1795.23398994,0.00021894,2]
[345354956,1734179441450,-200.0,0.00021894,2]
[345354958,1734179441458,-200.0,0.00021894,2]
[345354960,1734179441467,-200.0,0.00021894,2]
[345354962,1734179441482,-200.0,0.000219,2]
[345354964,1734179441491,-42543.20874064,0.000219,30]
[345354966,1734179441500,-500.0,0.00021917,3]
[345354968,1734179441509,-500.0,0.00021917,3]
[345354970,1734179441518,-500.0,0.00021917,3]
[345354972,1734179441527,-500.0,0.00021917,3]
[345354974,1734179441536,-500.0,0.00021917,3]
[345354976,1734179441545,-500.0,0.00021917,3]
[345354978,1734179441555,-500.0,0.00021917,3]
[345354980,1734179441564,-500.0,0.00021917,3]
[345354982,1734179441573,-500.0,0.00021917,3]
[345354984,1734179441583,-500.0,0.00021917,3]
[345354986,1734179441591,-500.0,0.00021917,3]
[345354988,1734179441601,-500.0,0.00021917,3]
[345354990,1734179441610,-495.66,0.00021917,3]
[345354992,1734179441619,-500.0,0.00021917,2]
[345354994,1734179441628,-500.0,0.00021917,2]
[345354996,1734179441638,-386.66031346,0.00021917,2]
[345354998,1734179441647,-600.0,0.00021917,3]
[345355000,1734179441656,-600.0,0.00021917,3]
[345355002,1734179441665,-600.0,0.00021917,3]